[Event "*** SCC Grand Prix: Titled Tuesday Blitz"]
[Site "Chess.com"]
[Date "2020.09.29"]
[Round "7"]
[White "Sesleria"]
[Black "queen_iryna"]
[Result "0-1"]
[WhiteElo "2103"]
[BlackElo "2297"]
[TimeControl "180+1"]
[EndTime "11:15:44 PDT"]
[Termination "queen_iryna won by resignation"]

1. e4 {[%clk 0:03:00.5]} 1... d6 {[%clk 0:02:59.8]} 2. d4 {[%clk 0:02:59.9]}
2... Nf6 {[%clk 0:02:59.2]} 3. Nc3 {[%clk 0:03:00.1]} 3... e5 {[%clk 0:02:58.8]}
4. Nf3 {[%clk 0:02:59.1]} 4... Nbd7 {[%clk 0:02:58.4]} 5. Bc4 {[%clk 0:02:58]}
5... Be7 {[%clk 0:02:57.8]} 6. O-O {[%clk 0:02:57.4]} 6... O-O {[%clk
0:02:57.5]} 7. Re1 {[%clk 0:02:55.6]} 7... c6 {[%clk 0:02:57.3]} 8. a4 {[%clk
0:02:55.1]} 8... h6 {[%clk 0:02:57.4]} 9. a5 {[%clk 0:02:54.4]} 9... Re8 {[%clk
0:02:57.2]} 10. h3 {[%clk 0:02:52.9]} 10... Bf8 {[%clk 0:02:56.5]} 11. dxe5
{[%clk 0:02:49.9]} 11... dxe5 {[%clk 0:02:44.6]} 12. Be3 {[%clk 0:02:48.1]}
12... Bb4 {[%clk 0:02:36.9]} 13. Qd3 {[%clk 0:02:24.4]} 13... Bxa5 {[%clk
0:02:29.2]} 14. b4 {[%clk 0:02:14.8]} 14... Bxb4 {[%clk 0:02:20.3]} 15. Bxf7+
{[%clk 0:02:13.1]} 15... Kxf7 {[%clk 0:02:15]} 16. Qc4+ {[%clk 0:02:13.2]} 16...
Kg6 {[%clk 0:02:14.5]} 17. Qxb4 {[%clk 0:02:09.5]} 17... a5 {[%clk 0:01:58.5]}
18. Qb3 {[%clk 0:01:54.5]} 18... b5 {[%clk 0:01:52.4]} 19. Nh4+ {[%clk
0:01:47.3]} 19... Kh7 {[%clk 0:01:51.4]} 20. Qf7 {[%clk 0:01:45.7]} 20... Nf8
{[%clk 0:01:30.1]} 21. Bc5 {[%clk 0:01:06.2]} 21... Qd7 {[%clk 0:01:28.6]} 22.
Qb3 {[%clk 0:00:59.1]} 22... a4 {[%clk 0:01:21.7]} 23. Qb4 {[%clk 0:00:57.1]}
23... Qf7 {[%clk 0:01:13.1]} 24. Nf5 {[%clk 0:00:35.5]} 24... Bxf5 {[%clk
0:01:12.4]} 25. exf5 {[%clk 0:00:35.8]} 25... N8d7 {[%clk 0:01:10.5]} 26. Rad1
{[%clk 0:00:31.3]} 26... Nxc5 {[%clk 0:01:09.7]} 27. Qxc5 {[%clk 0:00:31.3]}
27... a3 {[%clk 0:00:57.2]} 28. Ra1 {[%clk 0:00:25.8]} 28... a2 {[%clk
0:00:51.4]} 29. Rxe5 {[%clk 0:00:24.5]} 29... Rxe5 {[%clk 0:00:49.6]} 30. Qxe5
{[%clk 0:00:24.6]} 30... b4 {[%clk 0:00:40.8]} 31. Ne4 {[%clk 0:00:22]} 31...
Nxe4 {[%clk 0:00:31.2]} 32. Qxe4 {[%clk 0:00:22.2]} 32... b3 {[%clk 0:00:28.8]}
33. cxb3 {[%clk 0:00:21.1]} 33... Qxb3 {[%clk 0:00:28.4]} 34. f6+ {[%clk
0:00:21]} 34... Kg8 {[%clk 0:00:24]} 35. fxg7 {[%clk 0:00:19.5]} 35... Rb8
{[%clk 0:00:21]} 36. Kh2 {[%clk 0:00:17.8]} 36... c5 {[%clk 0:00:20.2]} 37. Qe5
{[%clk 0:00:15.5]} 37... Qb2 {[%clk 0:00:16.7]} 38. Rxa2 {[%clk 0:00:13.5]} 0-1

[Event "*** SCC Grand Prix: Titled Tuesday Blitz"]
[Site "Chess.com"]
[Date "2020.09.29"]
[Round "7"]
[White "DariaVoit"]
[Black "Ziachess74"]
[Result "1-0"]
[WhiteElo "2489"]
[BlackElo "2632"]
[TimeControl "180+1"]
[EndTime "11:15:45 PDT"]
[Termination "DariaVoit won on time"]

1. f4 {[%clk 0:03:00.9]} 1... c5 {[%clk 0:02:54.8]} 2. Nf3 {[%clk 0:03:00]} 2...
g6 {[%clk 0:02:52.2]} 3. e4 {[%clk 0:02:59.7]} 3... Bg7 {[%clk 0:02:52.2]} 4. d3
{[%clk 0:02:55.2]} 4... Nc6 {[%clk 0:02:50]} 5. g3 {[%clk 0:02:55.3]} 5... d5
{[%clk 0:02:46.5]} 6. e5 {[%clk 0:02:54]} 6... f6 {[%clk 0:02:40.9]} 7. exf6
{[%clk 0:02:52.6]} 7... Nxf6 {[%clk 0:02:28.7]} 8. Bg2 {[%clk 0:02:53]} 8... O-O
{[%clk 0:02:17.5]} 9. O-O {[%clk 0:02:53.6]} 9... Bg4 {[%clk 0:02:14.7]} 10.
Nbd2 {[%clk 0:02:46.3]} 10... Qd7 {[%clk 0:02:05.9]} 11. Nb3 {[%clk 0:02:43.8]}
11... b6 {[%clk 0:02:04.1]} 12. Qe1 {[%clk 0:02:33]} 12... Bxf3 {[%clk
0:01:58.4]} 13. Bxf3 {[%clk 0:02:33.4]} 13... Rae8 {[%clk 0:01:57.5]} 14. c4
{[%clk 0:02:29.2]} 14... e5 {[%clk 0:01:55.2]} 15. cxd5 {[%clk 0:02:28.5]} 15...
Nxd5 {[%clk 0:01:49.4]} 16. Qe4 {[%clk 0:02:25.7]} 16... Ncb4 {[%clk 0:01:48.6]}
17. Qc4 {[%clk 0:02:18.9]} 17... b5 {[%clk 0:01:16.5]} 18. Qxc5 {[%clk
0:02:17.9]} 18... Rc8 {[%clk 0:01:11.8]} 19. Qf2 {[%clk 0:02:08.9]} 19... exf4
{[%clk 0:01:06.4]} 20. d4 {[%clk 0:01:33.6]} 20... Rc2 {[%clk 0:00:53.1]} 21.
Bd2 {[%clk 0:01:26.6]} 21... fxg3 {[%clk 0:00:49.1]} 22. Qxg3 {[%clk 0:01:16.9]}
22... Rxb2 {[%clk 0:00:43.6]} 23. Rad1 {[%clk 0:01:07.8]} 23... Nxa2 {[%clk
0:00:40.8]} 24. Bg4 {[%clk 0:00:59.5]} 24... Qe7 {[%clk 0:00:28.7]} 25. Rxf8+
{[%clk 0:00:56.7]} 25... Bxf8 {[%clk 0:00:25.6]} 26. Re1 {[%clk 0:00:56]} 26...
Qd8 {[%clk 0:00:17.3]} 27. Be6+ {[%clk 0:00:55.3]} 27... Kh8 {[%clk 0:00:17.6]}
28. Qe5+ {[%clk 0:00:55.6]} 28... Nf6 {[%clk 0:00:16]} 29. Bg5 {[%clk
0:00:34.6]} 29... Bg7 {[%clk 0:00:15.7]} 30. Rf1 {[%clk 0:00:35.1]} 30... Nc3
{[%clk 0:00:03.2]} 31. Bxf6 {[%clk 0:00:32.7]} 31... Bxf6 {[%clk 0:00:02.5]} 32.
Rxf6 {[%clk 0:00:22.2]} 1-0

[Event "*** SCC Grand Prix: Titled Tuesday Blitz"]
[Site "Chess.com"]
[Date "2020.09.29"]
[Round "7"]
[White "PavelChernomordik"]
[Black "killer311"]
[Result "1-0"]
[WhiteElo "2326"]
[BlackElo "2433"]
[TimeControl "180+1"]
[EndTime "11:15:46 PDT"]
[Termination "PavelChernomordik won by checkmate"]

1. e4 {[%clk 0:03:00.9]} 1... c6 {[%clk 0:02:59.1]} 2. Nc3 {[%clk 0:02:59.1]}
2... d5 {[%clk 0:02:59.9]} 3. Qf3 {[%clk 0:02:56.8]} 3... dxe4 {[%clk
0:02:58.1]} 4. Nxe4 {[%clk 0:02:56.1]} 4... Nf6 {[%clk 0:02:59]} 5. Nxf6+ {[%clk
0:02:54.5]} 5... exf6 {[%clk 0:02:59.9]} 6. Bc4 {[%clk 0:02:54]} 6... Bd6 {[%clk
0:02:59.1]} 7. Ne2 {[%clk 0:02:53.6]} 7... O-O {[%clk 0:02:58.6]} 8. d4 {[%clk
0:02:49.2]} 8... Qc7 {[%clk 0:02:56.9]} 9. Be3 {[%clk 0:02:38]} 9... Re8 {[%clk
0:02:53]} 10. O-O-O {[%clk 0:02:35.2]} 10... b5 {[%clk 0:02:49.3]} 11. Bd3
{[%clk 0:02:34.2]} 11... Na6 {[%clk 0:02:44.9]} 12. c3 {[%clk 0:02:27.4]} 12...
b4 {[%clk 0:02:39.4]} 13. c4 {[%clk 0:02:23.5]} 13... Bb7 {[%clk 0:02:36.7]} 14.
c5 {[%clk 0:02:20.2]} 14... Bf8 {[%clk 0:02:35.6]} 15. Qf5 {[%clk 0:02:11.7]}
15... g6 {[%clk 0:02:33]} 16. Qxf6 {[%clk 0:02:11.2]} 16... Bg7 {[%clk
0:02:32.9]} 17. Qh4 {[%clk 0:02:10.2]} 17... b3 {[%clk 0:02:28.7]} 18. a3 {[%clk
0:02:08]} 18... Rad8 {[%clk 0:02:10.5]} 19. Bg5 {[%clk 0:01:56.2]} 19... Rd5
{[%clk 0:02:03.8]} 20. Bc4 {[%clk 0:01:46.1]} 20... Rf5 {[%clk 0:01:58.8]} 21.
Ng3 {[%clk 0:01:38.1]} 21... Rxf2 {[%clk 0:01:56.3]} 22. Rhe1 {[%clk 0:01:31]}
22... Qd7 {[%clk 0:01:42.1]} 23. Ne4 {[%clk 0:01:25.4]} 23... Rc2+ {[%clk
0:01:33.4]} 24. Kb1 {[%clk 0:01:21.9]} 24... Rxe4 {[%clk 0:01:15.5]} 25. Qxe4
{[%clk 0:01:13]} 25... h6 {[%clk 0:01:12]} 26. Bxb3 {[%clk 0:00:58.2]} 26... Rf2
{[%clk 0:00:57.9]} 27. Bh4 {[%clk 0:00:43.3]} 27... Rf5 {[%clk 0:00:50]} 28. g4
{[%clk 0:00:40.6]} 28... g5 {[%clk 0:00:35.8]} 29. Qxf5 {[%clk 0:00:33.8]} 29...
Qxf5+ {[%clk 0:00:34.7]} 30. gxf5 {[%clk 0:00:34.2]} 30... gxh4 {[%clk
0:00:35.6]} 31. Re7 {[%clk 0:00:33.2]} 31... Bc8 {[%clk 0:00:34.3]} 32. Rxf7
{[%clk 0:00:30.7]} 32... Kh8 {[%clk 0:00:29.9]} 33. Re1 {[%clk 0:00:28.8]} 33...
Nxc5 {[%clk 0:00:29.4]} 34. Re8+ {[%clk 0:00:26.5]} 34... Kh7 {[%clk 0:00:26]}
35. Rxc8 {[%clk 0:00:24.9]} 35... Nxb3 {[%clk 0:00:24.1]} 36. Rcc7 {[%clk
0:00:23.9]} 36... Nxd4 {[%clk 0:00:23.4]} 37. Rxg7+ {[%clk 0:00:21.8]} 37... Kh8
{[%clk 0:00:24.3]} 38. f6 {[%clk 0:00:21.3]} 38... h3 {[%clk 0:00:23.6]} 39.
Rc8# {[%clk 0:00:20.4]} 1-0

[Event "*** SCC Grand Prix: Titled Tuesday Blitz"]
[Site "Chess.com"]
[Date "2020.09.29"]
[Round "7"]
[White "BocharovD"]
[Black "Zhigalko_Sergei"]
[Result "0-1"]
[WhiteElo "2806"]
[BlackElo "2965"]
[TimeControl "180+1"]
[EndTime "11:15:47 PDT"]
[Termination "Zhigalko_Sergei won by checkmate"]

1. d4 {[%clk 0:03:00.9]} 1... Nf6 {[%clk 0:02:59.7]} 2. c4 {[%clk 0:03:00.8]}
2... e6 {[%clk 0:03:00.1]} 3. Nf3 {[%clk 0:03:00.8]} 3... b6 {[%clk 0:02:59.8]}
4. g3 {[%clk 0:03:00.2]} 4... Ba6 {[%clk 0:03:00]} 5. b3 {[%clk 0:02:59.7]} 5...
Bb4+ {[%clk 0:03:00.1]} 6. Bd2 {[%clk 0:02:59.2]} 6... Be7 {[%clk 0:03:00.4]} 7.
Bg2 {[%clk 0:02:59.5]} 7... c6 {[%clk 0:03:00.6]} 8. O-O {[%clk 0:02:50.9]} 8...
d5 {[%clk 0:03:01.5]} 9. Qc2 {[%clk 0:02:50.7]} 9... Nbd7 {[%clk 0:03:00]} 10.
Bf4 {[%clk 0:02:49.1]} 10... O-O {[%clk 0:02:59.5]} 11. Rd1 {[%clk 0:02:47.5]}
11... Rc8 {[%clk 0:02:58.8]} 12. Nbd2 {[%clk 0:02:44.6]} 12... Nh5 {[%clk
0:02:58.1]} 13. Be3 {[%clk 0:02:44.1]} 13... Re8 {[%clk 0:02:39.6]} 14. Qb2
{[%clk 0:02:38.9]} 14... Nhf6 {[%clk 0:02:29.6]} 15. Rac1 {[%clk 0:02:36.6]}
15... Bd6 {[%clk 0:02:21.1]} 16. Ne5 {[%clk 0:02:26.5]} 16... Qe7 {[%clk
0:02:17.1]} 17. Nxd7 {[%clk 0:02:17.4]} 17... Nxd7 {[%clk 0:02:14.3]} 18. Rc2
{[%clk 0:02:17.1]} 18... Ba3 {[%clk 0:02:06.8]} 19. Qb1 {[%clk 0:02:16.4]} 19...
h6 {[%clk 0:02:04.3]} 20. Nf3 {[%clk 0:02:16.1]} 20... Red8 {[%clk 0:02:02.8]}
21. Bf4 {[%clk 0:02:13.3]} 21... Nf6 {[%clk 0:01:47.9]} 22. Ne5 {[%clk
0:02:01.7]} 22... c5 {[%clk 0:01:48.2]} 23. dxc5 {[%clk 0:02:01.2]} 23... Bxc5
{[%clk 0:01:41.4]} 24. Rcd2 {[%clk 0:01:52.7]} 24... g5 {[%clk 0:01:06.8]} 25.
Be3 {[%clk 0:01:48.8]} 25... Bxe3 {[%clk 0:01:07.1]} 26. fxe3 {[%clk 0:01:48.6]}
26... Bb7 {[%clk 0:01:07.8]} 27. Qb2 {[%clk 0:01:41.1]} 27... Ba8 {[%clk
0:00:37.9]} 28. Rf1 {[%clk 0:01:24.5]} 28... dxc4 {[%clk 0:00:30.9]} 29. Rxd8+
{[%clk 0:01:12.5]} 29... Qxd8 {[%clk 0:00:20.9]} 30. Bxa8 {[%clk 0:01:08.2]}
30... c3 {[%clk 0:00:21.5]} 31. Qc2 {[%clk 0:01:06.2]} 31... Qd2 {[%clk
0:00:11.2]} 32. Qd3 {[%clk 0:01:03.3]} 32... Rxa8 {[%clk 0:00:05.1]} 33. Rxf6
{[%clk 0:01:01.4]} 33... Rd8 {[%clk 0:00:05.7]} 34. Qe4 {[%clk 0:00:24.9]} 34...
c2 {[%clk 0:00:06]} 35. Rxf7 {[%clk 0:00:23.1]} 35... c1=Q+ {[%clk 0:00:05.8]}
36. Kg2 {[%clk 0:00:23.4]} 36... Qxe2+ {[%clk 0:00:05.7]} 37. Rf2 {[%clk
0:00:23.4]} 37... Qcf1# {[%clk 0:00:05.6]} 0-1

[Event "*** SCC Grand Prix: Titled Tuesday Blitz"]
[Site "Chess.com"]
[Date "2020.09.29"]
[Round "7"]
[White "MariaFominykh"]
[Black "parintele_chess"]
[Result "1-0"]
[WhiteElo "2314"]
[BlackElo "2132"]
[TimeControl "180+1"]
[EndTime "11:15:47 PDT"]
[Termination "MariaFominykh won by resignation"]

1. Nf3 {[%clk 0:02:58.8]} 1... d5 {[%clk 0:02:58.8]} 2. g3 {[%clk 0:02:58.6]}
2... Nf6 {[%clk 0:02:57.8]} 3. Bg2 {[%clk 0:02:58.6]} 3... g6 {[%clk 0:02:56.2]}
4. O-O {[%clk 0:02:57.8]} 4... Bg7 {[%clk 0:02:56.5]} 5. d3 {[%clk 0:02:57.7]}
5... O-O {[%clk 0:02:55.7]} 6. Nbd2 {[%clk 0:02:57.6]} 6... c5 {[%clk
0:02:54.1]} 7. e4 {[%clk 0:02:57]} 7... dxe4 {[%clk 0:02:44.1]} 8. dxe4 {[%clk
0:02:56.4]} 8... Nc6 {[%clk 0:02:42.9]} 9. c3 {[%clk 0:02:55.5]} 9... e5 {[%clk
0:02:40.3]} 10. Qe2 {[%clk 0:02:51.3]} 10... h6 {[%clk 0:02:34.8]} 11. Rd1
{[%clk 0:02:50.2]} 11... Be6 {[%clk 0:02:31.3]} 12. Nf1 {[%clk 0:02:31.3]} 12...
Qe7 {[%clk 0:02:28.3]} 13. Ne3 {[%clk 0:02:16.8]} 13... Nxe4 {[%clk 0:02:20.6]}
14. Nc4 {[%clk 0:01:08.6]} 14... f5 {[%clk 0:02:01.6]} 15. Nh4 {[%clk
0:01:07.1]} 15... Kh7 {[%clk 0:01:49.4]} 16. Bxe4 {[%clk 0:01:05.8]} 16... fxe4
{[%clk 0:01:46.7]} 17. Qxe4 {[%clk 0:01:01.5]} 17... Qf7 {[%clk 0:01:39.7]} 18.
Nd6 {[%clk 0:00:41.8]} 18... Qxf2+ {[%clk 0:01:38.9]} 19. Kh1 {[%clk 0:00:41.8]}
19... Bh3 {[%clk 0:01:14.3]} 20. Qxg6+ {[%clk 0:00:38]} 20... Kh8 {[%clk
0:01:05.7]} 21. Bxh6 {[%clk 0:00:36.6]} 21... Qf6 {[%clk 0:00:47.5]} 22. Bxg7+
{[%clk 0:00:32.2]} 22... Qxg7 {[%clk 0:00:48.4]} 23. Qh5+ {[%clk 0:00:28.8]}
23... Kg8 {[%clk 0:00:48.5]} 24. Ng6 {[%clk 0:00:23.1]} 24... Be6 {[%clk
0:00:32]} 25. Nxf8 {[%clk 0:00:21]} 25... Rxf8 {[%clk 0:00:32.9]} 26. Qe2 {[%clk
0:00:17.7]} 26... Bg4 {[%clk 0:00:15.9]} 27. Qc4+ {[%clk 0:00:16.5]} 27... Kh8
{[%clk 0:00:15.9]} 28. Rf1 {[%clk 0:00:16.3]} 28... b5 {[%clk 0:00:06.8]} 29.
Rxf8+ {[%clk 0:00:13.2]} 29... Qxf8 {[%clk 0:00:07.7]} 30. Nf7+ {[%clk
0:00:12.5]} 30... Kg7 {[%clk 0:00:06.6]} 31. Qxg4+ {[%clk 0:00:12.1]} 31... Kxf7
{[%clk 0:00:07.5]} 32. Rf1+ {[%clk 0:00:12.2]} 1-0

[Event "*** SCC Grand Prix: Titled Tuesday Blitz"]
[Site "Chess.com"]
[Date "2020.09.29"]
[Round "7"]
[White "SergeyKarjakin"]
[Black "Zkid"]
[Result "0-1"]
[WhiteElo "2953"]
[BlackElo "2832"]
[TimeControl "180+1"]
[EndTime "11:15:49 PDT"]
[Termination "Zkid won by resignation"]

1. e4 {[%clk 0:03:00.9]} 1... e6 {[%clk 0:02:55.2]} 2. d4 {[%clk 0:02:59]} 2...
d5 {[%clk 0:02:55.3]} 3. Nc3 {[%clk 0:02:59.1]} 3... Bb4 {[%clk 0:02:55]} 4. e5
{[%clk 0:02:59.1]} 4... c5 {[%clk 0:02:55.6]} 5. a3 {[%clk 0:02:59.4]} 5...
Bxc3+ {[%clk 0:02:55.9]} 6. bxc3 {[%clk 0:03:00.3]} 6... Qa5 {[%clk 0:02:56.2]}
7. Bd2 {[%clk 0:02:59.1]} 7... Qa4 {[%clk 0:02:56.5]} 8. Qg4 {[%clk 0:02:56.9]}
8... Kf8 {[%clk 0:02:56.4]} 9. h4 {[%clk 0:02:56.8]} 9... Qxc2 {[%clk
0:02:54.7]} 10. dxc5 {[%clk 0:02:54.4]} 10... Nd7 {[%clk 0:02:52.4]} 11. Nf3
{[%clk 0:02:41.2]} 11... Qe4+ {[%clk 0:02:43.7]} 12. Qxe4 {[%clk 0:02:40.5]}
12... dxe4 {[%clk 0:02:44.6]} 13. Ng5 {[%clk 0:02:41]} 13... Nxe5 {[%clk
0:02:43.4]} 14. Nxe4 {[%clk 0:02:38.6]} 14... Nf6 {[%clk 0:02:43.1]} 15. Nd6
{[%clk 0:02:32.9]} 15... Bd7 {[%clk 0:02:36.9]} 16. Nxb7 {[%clk 0:02:24.1]}
16... Bc6 {[%clk 0:02:33]} 17. Nd6 {[%clk 0:02:13.9]} 17... Ke7 {[%clk
0:02:30.4]} 18. h5 {[%clk 0:01:55.5]} 18... h6 {[%clk 0:02:20.8]} 19. f3 {[%clk
0:01:51.4]} 19... Rab8 {[%clk 0:02:16.5]} 20. Bf4 {[%clk 0:01:50.6]} 20... Nfd7
{[%clk 0:02:12.3]} 21. Nc4 {[%clk 0:01:36.2]} 21... f6 {[%clk 0:02:09.2]} 22.
Nxe5 {[%clk 0:01:35.1]} 22... fxe5 {[%clk 0:01:59.6]} 23. Be3 {[%clk 0:01:24.2]}
23... Rb2 {[%clk 0:01:57.2]} 24. Rh4 {[%clk 0:01:17.4]} 24... a5 {[%clk
0:01:50.9]} 25. Rd1 {[%clk 0:01:09.4]} 25... Rhb8 {[%clk 0:01:34.8]} 26. Rg4
{[%clk 0:01:02.3]} 26... Kf7 {[%clk 0:01:30.2]} 27. Rd6 {[%clk 0:01:01.3]} 27...
Rb1+ {[%clk 0:01:24.5]} 28. Kf2 {[%clk 0:01:01.3]} 28... R8b2+ {[%clk
0:01:24.5]} 29. Kg3 {[%clk 0:01:01.5]} 29... Rxf1 {[%clk 0:01:06.6]} 30. Rxc6
{[%clk 0:01:01.5]} 30... Nf6 {[%clk 0:01:06.4]} 31. Rc7+ {[%clk 0:01:01.7]}
31... Ke8 {[%clk 0:01:05.1]} 32. Rh4 {[%clk 0:00:56.6]} 32... Re2 {[%clk
0:01:01]} 33. Ra4 {[%clk 0:00:49.4]} 33... Nxh5+ {[%clk 0:00:50.9]} 34. Kh2
{[%clk 0:00:47.1]} 34... Ree1 {[%clk 0:00:45.1]} 35. Kh3 {[%clk 0:00:41.3]}
35... Rxe3 {[%clk 0:00:40.4]} 36. Kg4 {[%clk 0:00:19.8]} 36... Rh1 {[%clk
0:00:32.8]} 37. c6 {[%clk 0:00:14]} 37... g5 {[%clk 0:00:25.2]} 0-1

[Event "*** SCC Grand Prix: Titled Tuesday Blitz"]
[Site "Chess.com"]
[Date "2020.09.29"]
[Round "7"]
[White "Harry_Rakkel"]
[Black "Chuchofrio1"]
[Result "1/2-1/2"]
[WhiteElo "2558"]
[BlackElo "2407"]
[TimeControl "180+1"]
[EndTime "11:15:49 PDT"]
[Termination "Game drawn by repetition"]

1. c4 {[%clk 0:03:00.9]} 1... Nf6 {[%clk 0:02:59.2]} 2. Nf3 {[%clk 0:02:59.7]}
2... e6 {[%clk 0:02:59.3]} 3. Nc3 {[%clk 0:02:58.6]} 3... d5 {[%clk 0:02:59.3]}
4. cxd5 {[%clk 0:02:58.5]} 4... exd5 {[%clk 0:02:58.6]} 5. d4 {[%clk 0:02:59]}
5... c6 {[%clk 0:02:54.5]} 6. Bg5 {[%clk 0:02:58.3]} 6... Bf5 {[%clk 0:02:52]}
7. Qb3 {[%clk 0:02:56.9]} 7... Qb6 {[%clk 0:02:48.3]} 8. Bxf6 {[%clk 0:02:56]}
8... gxf6 {[%clk 0:02:44.7]} 9. e3 {[%clk 0:02:55.4]} 9... Nd7 {[%clk
0:02:44.6]} 10. Nh4 {[%clk 0:02:50.5]} 10... Bg6 {[%clk 0:02:37.8]} 11. Be2
{[%clk 0:02:43.4]} 11... Qxb3 {[%clk 0:02:37]} 12. axb3 {[%clk 0:02:42.4]} 12...
a6 {[%clk 0:02:37.1]} 13. Kd2 {[%clk 0:02:37]} 13... Bd6 {[%clk 0:02:33.3]} 14.
g3 {[%clk 0:02:35.8]} 14... O-O {[%clk 0:02:23.7]} 15. Bg4 {[%clk 0:02:33.7]}
15... Rad8 {[%clk 0:02:19]} 16. Nf5 {[%clk 0:02:32]} 16... Bb4 {[%clk
0:02:13.7]} 17. h4 {[%clk 0:02:28.3]} 17... h5 {[%clk 0:02:11.9]} 18. Bh3 {[%clk
0:02:27.3]} 18... Rfe8 {[%clk 0:02:10.8]} 19. Kd1 {[%clk 0:02:19.3]} 19... Kh7
{[%clk 0:02:02.7]} 20. Ne2 {[%clk 0:02:17.5]} 20... c5 {[%clk 0:01:54.8]} 21.
Nd6 {[%clk 0:02:12.1]} 21... Re7 {[%clk 0:01:20.3]} 22. Nxb7 {[%clk 0:02:09.9]}
22... Rb8 {[%clk 0:01:20.1]} 23. Bxd7 {[%clk 0:01:54.8]} 23... Rxd7 {[%clk
0:01:07.9]} 24. Nxc5 {[%clk 0:01:54.1]} 24... Bxc5 {[%clk 0:01:07.9]} 25. dxc5
{[%clk 0:01:55]} 25... Rxb3 {[%clk 0:01:07.6]} 26. Kc1 {[%clk 0:01:53.6]} 26...
Rc7 {[%clk 0:01:05.7]} 27. Ra5 {[%clk 0:01:41.8]} 27... Rcb7 {[%clk 0:00:54.5]}
28. c6 {[%clk 0:01:35.1]} 28... R7b6 {[%clk 0:00:48.7]} 29. Nd4 {[%clk
0:01:08.6]} 29... Rxb2 {[%clk 0:00:48]} 30. Rd1 {[%clk 0:01:07.8]} 30... Rxf2
{[%clk 0:00:42.2]} 31. Ra1 {[%clk 0:00:55.4]} 31... Rb4 {[%clk 0:00:37]} 32. Re1
{[%clk 0:00:35.7]} 32... Rc4+ {[%clk 0:00:27.9]} 33. Kd1 {[%clk 0:00:35.8]}
33... Bc2+ {[%clk 0:00:19.2]} 34. Nxc2 {[%clk 0:00:21.1]} 34... Rcxc2 {[%clk
0:00:19.2]} 35. Rg1 {[%clk 0:00:19]} 35... Rfd2+ {[%clk 0:00:18.8]} 36. Ke1
{[%clk 0:00:18.4]} 36... Re2+ {[%clk 0:00:18.9]} 37. Kd1 {[%clk 0:00:18.6]}
37... Red2+ {[%clk 0:00:19.1]} 38. Ke1 {[%clk 0:00:18.6]} 38... Re2+ {[%clk
0:00:19.4]} 39. Kd1 {[%clk 0:00:18.7]} 39... Rcd2+ {[%clk 0:00:20]} 40. Kc1
{[%clk 0:00:18.7]} 40... Rc2+ {[%clk 0:00:20.4]} 41. Kd1 {[%clk 0:00:19.3]}
1/2-1/2

[Event "*** SCC Grand Prix: Titled Tuesday Blitz"]
[Site "Chess.com"]
[Date "2020.09.29"]
[Round "7"]
[White "ajdemipopushi"]
[Black "KarstenHansch"]
[Result "1-0"]
[WhiteElo "2358"]
[BlackElo "2454"]
[TimeControl "180+1"]
[EndTime "11:15:49 PDT"]
[Termination "ajdemipopushi won by resignation"]

1. Nf3 {[%clk 0:03:00.9]} 1... d5 {[%clk 0:02:59.8]} 2. g3 {[%clk 0:03:00.8]}
2... e6 {[%clk 0:03:00.2]} 3. c4 {[%clk 0:03:00.5]} 3... Nf6 {[%clk 0:03:01.1]}
4. Bg2 {[%clk 0:03:00.8]} 4... dxc4 {[%clk 0:03:01.4]} 5. Na3 {[%clk 0:02:59.3]}
5... Bxa3 {[%clk 0:02:59.7]} 6. Qa4+ {[%clk 0:02:59.3]} 6... b5 {[%clk
0:02:57.3]} 7. Qxa3 {[%clk 0:02:53.2]} 7... Bb7 {[%clk 0:02:57.1]} 8. b3 {[%clk
0:02:51]} 8... cxb3 {[%clk 0:02:57]} 9. axb3 {[%clk 0:02:50.9]} 9... a5 {[%clk
0:02:57.1]} 10. Qc5 {[%clk 0:02:40.7]} 10... c6 {[%clk 0:02:11.6]} 11. Ne5
{[%clk 0:02:09.9]} 11... Ra6 {[%clk 0:01:41]} 12. Ba3 {[%clk 0:02:00.7]} 12...
Nbd7 {[%clk 0:01:28.7]} 13. Nxd7 {[%clk 0:01:58.9]} 13... Qxd7 {[%clk
0:01:29.6]} 14. O-O {[%clk 0:01:50.9]} 14... Nd5 {[%clk 0:00:55.9]} 15. Rfc1
{[%clk 0:01:23.5]} 15... Qe7 {[%clk 0:00:40]} 16. Qd4 {[%clk 0:01:07.8]} 16...
Qf6 {[%clk 0:00:38.2]} 17. Qc5 {[%clk 0:00:46.3]} 17... b4 {[%clk 0:00:20.4]}
18. Bxb4 {[%clk 0:00:42.5]} 18... Nxb4 {[%clk 0:00:20.4]} 19. Rxa5 {[%clk
0:00:41.6]} 19... Rxa5 {[%clk 0:00:20.8]} 20. Qxa5 {[%clk 0:00:41.8]} 20... Nd5
{[%clk 0:00:21.1]} 21. Qa7 {[%clk 0:00:40.1]} 21... Bc8 {[%clk 0:00:11.2]} 22.
Rxc6 {[%clk 0:00:35.6]} 22... O-O {[%clk 0:00:11.3]} 23. Bxd5 {[%clk 0:00:35.7]}
23... Qb2 {[%clk 0:00:09.4]} 24. Bc4 {[%clk 0:00:32.2]} 24... Qxd2 {[%clk
0:00:09.6]} 25. Rc7 {[%clk 0:00:28.7]} 25... h5 {[%clk 0:00:03.4]} 26. Qc5
{[%clk 0:00:28.2]} 26... Qd1+ {[%clk 0:00:01.1]} 27. Kg2 {[%clk 0:00:28]} 27...
Qd8 {[%clk 0:00:02]} 28. h4 {[%clk 0:00:25.6]} 28... g6 {[%clk 0:00:01.3]} 29.
e3 {[%clk 0:00:25.2]} 29... e5 {[%clk 0:00:01.4]} 30. Re7 {[%clk 0:00:23.7]}
30... Be6 {[%clk 0:00:01]} 31. Bxe6 {[%clk 0:00:22.4]} 31... fxe6 {[%clk
0:00:01.9]} 32. Rxe6 {[%clk 0:00:20.9]} 32... Qa8+ {[%clk 0:00:02.8]} 33. Qc6
{[%clk 0:00:19.7]} 33... Qa2 {[%clk 0:00:02.1]} 34. Rxg6+ {[%clk 0:00:19]} 34...
Kh8 {[%clk 0:00:02.4]} 35. Rh6+ {[%clk 0:00:19]} 1-0